fUSD/lending_fUSD_20260615
["ID","MTS","AMOUNT","RATE_DAILY","PERIOD"]
[425080223,1781469041000,-488.14908391,0.00011651,3]
[425080225,1781469041000,-2250.37276814,0.00011652,2]
[425080221,1781469041000,-150.0,0.00011651,2]
[425080195,1781469041000,-151.0,0.00011415,2]
[425080219,1781469041000,-296.99088576,0.00011593,2]
[425080222,1781469041000,-559.82468352,0.00011651,3]
[425080212,1781469041000,-163.31,0.00011417,2]
[425080215,1781469041000,-153.0,0.00011456,2]
[425080214,1781469041000,-151.0,0.00011425,2]
[425080209,1781469041000,-151.0,0.00011415,2]
[425080213,1781469041000,-151.0,0.00011418,2]
[425080217,1781469041000,-151.0,0.00011581,2]
[425080218,1781469041000,-166.66,0.00011583,2]
[425080220,1781469041000,-151.0,0.00011649,2]
[425080216,1781469041000,-166.66,0.00011458,2]
[425080248,1781469043000,-1047.97376742,0.00012168,3]
[425080251,1781469043000,-692.09063463,0.00012169,2]
[425080255,1781469043000,-159.97171096,0.00012239,2]
[425080263,1781469043000,-130.24224894,0.00012269,2]
[425080256,1781469043000,-500.0,0.00012268,2]
[425080259,1781469043000,-500.0,0.00012268,2]
[425080264,1781469043000,-151.0,0.00012269,2]
[425080261,1781469043000,-500.0,0.00012268,2]
[425080262,1781469043000,-500.0,0.00012268,2]
[425080252,1781469043000,-184.2270023,0.00012169,2]
[425080258,1781469043000,-500.0,0.00012268,2]
[425080257,1781469043000,-500.0,0.00012268,2]
[425080265,1781469043000,-153.0,0.00012269,2]
[425080260,1781469043000,-500.0,0.00012268,2]
[425080254,1781469043000,-500.0,0.00012205,2]
[425080246,1781469043000,-1063.40577739,0.00012168,3]
[425080253,1781469043000,-2042.34366995,0.00012169,2]
[425080267,1781469043000,-151.0,0.00012269,2]
[425080234,1781469043000,-150.0,0.0001121,2]
[425080235,1781469043000,-254.0,0.00011321,2]
[425080236,1781469043000,-2451223.57973089,0.00011652,2]
[425080239,1781469043000,-1400.20602382,0.00012069,2]
[425080243,1781469043000,-2076.99282903,0.00012117,2]
[425080249,1781469043000,-3132.1534,0.00012169,2]
[425080242,1781469043000,-151.0,0.00012077,2]
[425080237,1781469043000,-1000.0,0.00011694,2]
[425080238,1781469043000,-19843.50821557,0.00011752,2]
[425080244,1781469043000,-151.0,0.00012166,2]
[425080247,1781469043000,-3000.0,0.00012168,2]
[425080245,1781469043000,-1039.55630745,0.00012168,3]
[425080250,1781469043000,-819387.37,0.00012169,2]
[425080241,1781469043000,-199.58232292,0.00012069,2]
[425080240,1781469043000,-402.64878622,0.00012069,2]
[425080269,1781469043000,-151.0,0.00012269,2]
[425080266,1781469043000,-151.0,0.00012269,2]
[425080288,1781469043000,-296.99088574,0.00013247,2]
[425080289,1781469043000,-1400.20602382,0.00013282,2]
[425080290,1781469043000,-2042.34366995,0.00013383,2]
[425080291,1781469043000,-150.0,0.00013463,2]
[425080293,1781469043000,-150.0,0.00013463,2]
[425080292,1781469043000,-150.0,0.00013463,2]
[425080287,1781469043000,-500.0,0.00013205,2]
[425080294,1781469043000,-150.0,0.00013463,2]
[425080297,1781469043000,-163.32,0.00013491,2]
[425080299,1781469043000,-2000.0,0.0001353,2]
[425080300,1781469043000,-692.0906346,0.00013535,2]
[425080301,1781469043000,-184.2270023,0.00013535,2]
[425080298,1781469043000,-500.0,0.0001353,2]
[425080268,1781469043000,-151.0,0.00012269,2]
[425080296,1781469043000,-402.6487862,0.00013485,2]
[425080286,1781469043000,-19571.6763,0.00013117,2]
[425080295,1781469043000,-2000.0,0.00013477,2]
[425080284,1781469043000,-9669.51638635,0.00013117,2]
[425080270,1781469043000,-160.08666874,0.00012469,2]
[425080282,1781469043000,-692.0906346,0.00013079,2]
[425080274,1781469043000,-1550.68253156,0.00012488,2]
[425080273,1781469043000,-500.0,0.00012478,2]
[425080271,1781469043000,-2042.34366995,0.00012472,2]
[425080275,1781469043000,-5481.21693705,0.00012617,2]
[425080276,1781469043000,-692.0906346,0.00012624,2]
[425080272,1781469043000,-1400.20602382,0.00012473,2]
[425080283,1781469043000,-2042.34366995,0.00013079,2]
[425080280,1781469043000,-1400.20602382,0.00012878,2]
[425080279,1781469043000,-2042.34366995,0.00012776,2]
[425080277,1781469043000,-1001.11,0.00012688,2]
[425080281,1781469043000,-150.0,0.00012987,2]
[425080285,1781469043000,-14465.01821819,0.00013117,2]
[425080278,1781469043000,-255.0,0.00012723,2]
[425080326,1781469044000,-736.82,0.00013698,2]
[425080343,1781469044000,-500.0,0.00013698,2]
[425080327,1781469044000,-736.82,0.00013698,2]
[425080328,1781469044000,-736.82,0.00013698,2]
[425080329,1781469044000,-736.82,0.00013698,2]
[425080333,1781469044000,-1077.43,0.00013698,2]
[425080334,1781469044000,-1077.43,0.00013698,2]
[425080339,1781469044000,-500.0,0.00013698,2]
[425080337,1781469044000,-1077.43,0.00013698,2]
[425080344,1781469044000,-500.0,0.00013698,2]
[425080338,1781469044000,-1077.43,0.00013698,2]
[425080335,1781469044000,-1077.43,0.00013698,2]
[425080340,1781469044000,-500.0,0.00013698,2]
[425080342,1781469044000,-500.0,0.00013698,2]
[425080341,1781469044000,-500.0,0.00013698,2]
[425080346,1781469044000,-500.0,0.00013698,2]
[425080355,1781469044000,-500.0,0.00013698,2]
[425080356,1781469044000,-500.0,0.00013698,2]
[425080331,1781469044000,-736.82,0.00013698,2]
[425080336,1781469044000,-1077.43,0.00013698,2]
[425080325,1781469044000,-736.82,0.00013698,2]
[425080303,1781469044000,-1000.0,0.00013662,2]
[425080324,1781469044000,-292.56293859,0.00013698,2]
[425080354,1781469044000,-500.0,0.00013698,2]
[425080302,1781469044000,-1000.0,0.00013662,2]
[425080306,1781469044000,-1400.20602382,0.00013687,2]
[425080307,1781469044000,-500.0,0.00013698,2]
[425080304,1781469044000,-2042.34366995,0.00013686,2]
[425080308,1781469044000,-500.0,0.00013698,2]
[425080310,1781469044000,-500.0,0.00013698,2]
[425080309,1781469044000,-500.0,0.00013698,2]
[425080311,1781469044000,-500.0,0.00013698,2]
[425080322,1781469044000,-500.0,0.00013698,2]
[425080312,1781469044000,-500.0,0.00013698,2]
[425080318,1781469044000,-500.0,0.00013698,2]
[425080317,1781469044000,-500.0,0.00013698,2]
[425080314,1781469044000,-500.0,0.00013698,2]
[425080315,1781469044000,-500.0,0.00013698,2]
[425080320,1781469044000,-500.0,0.00013698,2]
[425080319,1781469044000,-500.0,0.00013698,2]
[425080321,1781469044000,-500.0,0.00013698,2]
[425080332,1781469044000,-1077.43,0.00013698,2]
[425080323,1781469044000,-500.0,0.00013698,2]
[425080316,1781469044000,-500.0,0.00013698,2]
[425080347,1781469044000,-500.0,0.00013698,2]
[425080330,1781469044000,-736.82,0.00013698,2]
[425080349,1781469044000,-500.0,0.00013698,2]
[425080376,1781469044000,-883.18,0.00013698,2]
[425080378,1781469044000,-883.18,0.00013698,2]
[425080377,1781469044000,-883.18,0.00013698,2]
[425080375,1781469044000,-883.18,0.00013698,2]
[425080379,1781469044000,-883.18,0.00013698,2]
[425080380,1781469044000,-883.18,0.00013698,2]
[425080381,1781469044000,-883.18,0.00013698,2]
[425080387,1781469044000,-584.1,0.00013698,2]
[425080385,1781469044000,-584.1,0.00013698,2]
[425080373,1781469044000,-500.0,0.00013698,2]
[425080386,1781469044000,-584.1,0.00013698,2]
[425080383,1781469044000,-584.1,0.00013698,2]
[425080384,1781469044000,-584.1,0.00013698,2]
[425080388,1781469044000,-584.1,0.00013698,2]
[425080390,1781469044000,-500.0,0.00013698,2]
[425080389,1781469044000,-500.0,0.00013698,2]
[425080391,1781469044000,-500.0,0.00013698,2]
[425080393,1781469044000,-500.0,0.00013698,2]
[425080395,1781469044000,-500.0,0.00013698,2]
[425080345,1781469044000,-500.0,0.00013698,2]
[425080382,1781469044000,-584.1,0.00013698,2]
[425080372,1781469044000,-317.27339362,0.00013698,2]
[425080392,1781469044000,-500.0,0.00013698,2]
[425080371,1781469044000,-500.0,0.00013698,2]
[425080394,1781469044000,-500.0,0.00013698,2]
[425080352,1781469044000,-500.0,0.00013698,2]
[425080348,1781469044000,-500.0,0.00013698,2]
[425080350,1781469044000,-500.0,0.00013698,2]
[425080351,1781469044000,-500.0,0.00013698,2]
[425080362,1781469044000,-779.21,0.00013698,2]
[425080357,1781469044000,-500.0,0.00013698,2]
[425080364,1781469044000,-779.21,0.00013698,2]
[425080358,1781469044000,-500.0,0.00013698,2]
[425080359,1781469044000,-500.0,0.00013698,2]
[425080353,1781469044000,-500.0,0.00013698,2]
[425080360,1781469044000,-500.0,0.00013698,2]
[425080365,1781469044000,-779.21,0.00013698,2]
[425080369,1781469044000,-500.0,0.00013698,2]
[425080367,1781469044000,-779.21,0.00013698,2]
[425080370,1781469044000,-500.0,0.00013698,2]
[425080363,1781469044000,-779.21,0.00013698,2]
[425080368,1781469044000,-500.0,0.00013698,2]
[425080366,1781469044000,-779.21,0.00013698,2]
[425080361,1781469044000,-779.21,0.00013698,2]
[425080374,1781469044000,-500.0,0.00013698,2]
[425080417,1781469045000,-500.0,0.00013698,2]
[425080418,1781469045000,-500.0,0.00013698,2]
[425080420,1781469045000,-500.0,0.00013698,2]
[425080415,1781469045000,-500.0,0.00013698,2]
[425080419,1781469045000,-500.0,0.00013698,2]
[425080424,1781469045000,-500.0,0.00013698,2]
[425080421,1781469045000,-500.0,0.00013698,2]
[425080425,1781469045000,-500.0,0.00013698,2]
[425080429,1781469045000,-500.0,0.00013698,2]
[425080423,1781469045000,-500.0,0.00013698,2]
[425080426,1781469045000,-500.0,0.00013698,2]
[425080428,1781469045000,-500.0,0.00013698,2]
[425080430,1781469045000,-500.0,0.00013698,2]
[425080431,1781469045000,-500.0,0.00013698,2]
[425080416,1781469045000,-500.0,0.00013698,2]
[425080432,1781469045000,-500.0,0.00013698,2]
[425080422,1781469045000,-500.0,0.00013698,2]
[425080412,1781469045000,-500.0,0.00013698,2]
[425080403,1781469045000,-500.0,0.00013698,2]
[425080407,1781469045000,-239.54885664,0.00013698,2]
[425080437,1781469045000,-505.81197487,0.00013698,2]
[425080402,1781469045000,-500.0,0.00013698,2]
[425080396,1781469045000,-500.0,0.00013698,2]
[425080397,1781469045000,-500.0,0.00013698,2]
[425080398,1781469045000,-500.0,0.00013698,2]
[425080400,1781469045000,-500.0,0.00013698,2]
[425080401,1781469045000,-500.0,0.00013698,2]
[425080410,1781469045000,-500.0,0.00013698,2]
[425080399,1781469045000,-500.0,0.00013698,2]
[425080408,1781469045000,-500.0,0.00013698,2]
[425080406,1781469045000,-615.34468037,0.00013698,2]
[425080414,1781469045000,-500.0,0.00013698,2]
[425080413,1781469045000,-500.0,0.00013698,2]
[425080409,1781469045000,-500.0,0.00013698,2]
[425080404,1781469045000,-500.0,0.00013698,2]
[425080411,1781469045000,-500.0,0.00013698,2]
[425080405,1781469045000,-500.0,0.00013698,2]
[425080433,1781469045000,-500.0,0.00013698,2]
[425080434,1781469045000,-500.0,0.00013698,2]
[425080436,1781469045000,-500.0,0.00013698,2]
[425080460,1781469045000,-2407.68,0.00013698,2]
[425080452,1781469045000,-500.0,0.00013698,2]
[425080457,1781469045000,-500.0,0.00013698,2]
[425080462,1781469045000,-2407.68,0.00013698,2]
[425080461,1781469045000,-2407.68,0.00013698,2]
[425080464,1781469045000,-2407.68,0.00013698,2]
[425080463,1781469045000,-2407.68,0.00013698,2]
[425080465,1781469045000,-2407.68,0.00013698,2]
[425080466,1781469045000,-2407.68,0.00013698,2]
[425080469,1781469045000,-510.79198853,0.00013698,2]
[425080468,1781469045000,-500.0,0.00013698,2]
[425080470,1781469045000,-1625.54,0.00013698,2]
[425080472,1781469045000,-1625.54,0.00013698,2]
[425080471,1781469045000,-1625.54,0.00013698,2]
[425080473,1781469045000,-1625.54,0.00013698,2]
[425080474,1781469045000,-1625.54,0.00013698,2]
[425080435,1781469045000,-500.0,0.00013698,2]
[425080454,1781469045000,-500.0,0.00013698,2]
[425080459,1781469045000,-226.33260723,0.00013698,2]
[425080467,1781469045000,-2407.68,0.00013698,2]
[425080458,1781469045000,-415.12475003,0.00013698,2]
[425080427,1781469045000,-500.0,0.00013698,2]
[425080451,1781469045000,-1207.74,0.00013698,2]
[425080439,1781469045000,-500.0,0.00013698,2]
[425080449,1781469045000,-1207.74,0.00013698,2]
[425080438,1781469045000,-534.08043595,0.00013698,2]
[425080443,1781469045000,-207.65368765,0.00013698,2]
[425080441,1781469045000,-503.57081224,0.00013698,2]
[425080442,1781469045000,-500.0,0.00013698,2]
[425080440,1781469045000,-500.0,0.00013698,2]
[425080446,1781469045000,-1207.74,0.00013698,2]
[425080445,1781469045000,-1207.74,0.00013698,2]
[425080448,1781469045000,-1207.74,0.00013698,2]
[425080447,1781469045000,-1207.74,0.00013698,2]
[425080450,1781469045000,-1207.74,0.00013698,2]
[425080453,1781469045000,-500.0,0.00013698,2]
[425080444,1781469045000,-1207.74,0.00013698,2]
[425080456,1781469045000,-500.0,0.00013698,2]
[425080455,1781469045000,-500.0,0.00013698,2]
[425080514,1781469046000,-350.0,0.00014292,2]
[425080512,1781469046000,-500.0,0.0001423,2]
[425080508,1781469046000,-1400.20602382,0.00014091,2]
[425080516,1781469046000,-502.35889749,0.00014299,2]
[425080509,1781469046000,-1001.11,0.00014098,2]
[425080510,1781469046000,-250.0,0.00014227,2]
[425080507,1781469046000,-202.105689,0.00014,2]
[425080518,1781469046000,-1077.43,0.00014399,2]
[425080502,1781469046000,-178.0,0.00013888,2]
[425080513,1781469046000,-3321.42,0.00014277,2]
[425080519,1781469046000,-1077.43,0.00014399,2]
[425080527,1781469046000,-584.1,0.00014399,2]
[425080520,1781469046000,-500.0,0.00014399,2]
[425080530,1781469046000,-500.0,0.00014399,2]
[425080523,1781469046000,-500.0,0.00014399,2]
[425080522,1781469046000,-500.0,0.00014399,2]
[425080526,1781469046000,-779.21,0.00014399,2]
[425080528,1781469046000,-584.1,0.00014399,2]
[425080525,1781469046000,-779.21,0.00014399,2]
[425080529,1781469046000,-500.0,0.00014399,2]
[425080524,1781469046000,-500.0,0.00014399,2]
[425080531,1781469046000,-500.0,0.00014399,2]
[425080500,1781469046000,-4885.19442,0.00013814,2]
[425080517,1781469046000,-350.0,0.00014354,2]
[425080503,1781469046000,-1625.54,0.00013989,2]
[425080478,1781469046000,-500.0,0.00013698,2]
[425080505,1781469046000,-2042.34366995,0.0001399,2]
[425080535,1781469046000,-500.0,0.00014399,2]
[425080476,1781469046000,-1625.54,0.00013698,2]
[425080477,1781469046000,-500.0,0.00013698,2]
[425080481,1781469046000,-500.0,0.00013698,2]
[425080480,1781469046000,-500.0,0.00013698,2]
[425080475,1781469046000,-1625.54,0.00013698,2]
[425080479,1781469046000,-550.89393904,0.00013698,2]
[425080482,1781469046000,-500.0,0.00013698,2]
[425080483,1781469046000,-500.0,0.00013698,2]
[425080489,1781469046000,-168.74,0.00013699,2]
[425080488,1781469046000,-9625.6,0.00013699,2]
[425080484,1781469046000,-500.0,0.00013698,2]
[425080487,1781469046000,-722.51,0.00013699,2]
[425080485,1781469046000,-500.0,0.00013698,2]
[425080492,1781469046000,-2500.0,0.00013699,2]
[425080490,1781469046000,-200.0,0.00013699,2]
[425080486,1781469046000,-500.0,0.00013698,2]
[425080494,1781469046000,-16519.67,0.00013699,2]
[425080496,1781469046000,-660.23,0.00013699,2]
[425080506,1781469046000,-60000.0,0.0001399,2]
[425080497,1781469046000,-4284.26,0.00013699,2]
[425080495,1781469046000,-150.99,0.00013699,2]
[425080498,1781469046000,-163.74,0.000137,2]
[425080504,1781469046000,-692.0906346,0.0001399,2]
[425080537,1781469046000,-2407.68,0.00014399,2]
[425080515,1781469046000,-2042.34366995,0.00014293,2]
[425080534,1781469046000,-500.0,0.00014399,2]
[425080563,1781469046000,-381.0,0.000148,2]
[425080564,1781469046000,-381.0,0.00014804,2]
[425080567,1781469046000,-381.0,0.00014809,2]
[425080570,1781469046000,-381.0,0.00014832,2]
[425080568,1781469046000,-479.51305886,0.00014821,2]
[425080569,1781469046000,-381.0,0.00014825,2]
[425080571,1781469046000,-381.0,0.00014841,2]
[425080565,1781469046000,-381.0,0.00014804,2]
[425080573,1781469046000,-3198.48236,0.00014844,2]
[425080566,1781469046000,-381.0,0.00014808,2]
[425080572,1781469046000,-381.0,0.00014843,2]
[425080575,1781469046000,-381.0,0.0001485,2]
[425080574,1781469046000,-381.0,0.00014849,2]
[425080576,1781469046000,-381.0,0.00014851,2]
[425080577,1781469046000,-350.0,0.00014862,2]
[425080578,1781469046000,-381.0,0.00014864,2]
[425080579,1781469046000,-500.0,0.00014864,2]
[425080580,1781469046000,-1625.54,0.00014865,2]
[425080582,1781469046000,-381.0,0.00014872,2]
[425080581,1781469046000,-381.0,0.0001487,2]
[425080583,1781469046000,-1617.821,0.00014874,2]
[425080585,1781469046000,-155.664,0.00014874,2]
[425080586,1781469046000,-5800.0,0.00014874,2]
[425080561,1781469046000,-381.0,0.00014789,2]
[425080556,1781469046000,-381.0,0.00014775,2]
[425080532,1781469046000,-500.0,0.00014399,2]
[425080559,1781469046000,-381.0,0.00014788,2]
[425080533,1781469046000,-500.0,0.00014399,2]
[425080538,1781469046000,-2407.68,0.00014399,2]
[425080536,1781469046000,-500.0,0.00014399,2]
[425080540,1781469046000,-350.0,0.00014437,2]
[425080539,1781469046000,-1625.54,0.00014399,2]
[425080541,1781469046000,-692.0906346,0.00014445,2]
[425080560,1781469046000,-381.0,0.00014789,2]
[425080545,1781469046000,-502.0,0.00014575,2]
[425080542,1781469046000,-255.86922144,0.0001447,2]
[425080549,1781469046000,-381.0,0.00014748,2]
[425080547,1781469046000,-2042.34366995,0.00014597,2]
[425080546,1781469046000,-1351.89418603,0.00014597,2]
[425080543,1781469046000,-210.80491,0.00014479,2]
[425080544,1781469046000,-1400.20602382,0.00014496,2]
[425080587,1781469046000,-15000.0,0.00014875,2]
[425080548,1781469046000,-381.0,0.00014747,2]
[425080550,1781469046000,-381.0,0.00014754,2]
[425080551,1781469046000,-381.0,0.00014758,2]
[425080553,1781469046000,-381.0,0.00014768,2]
[425080555,1781469046000,-381.0,0.00014774,2]
[425080554,1781469046000,-381.0,0.00014771,2]
[425080557,1781469046000,-381.0,0.00014776,2]
[425080558,1781469046000,-381.0,0.00014787,2]
[425080562,1781469046000,-381.0,0.0001479,2]
[425080552,1781469046000,-381.0,0.00014767,2]
[425080635,1781469047000,-10000.0,0.000149,2]
[425080634,1781469047000,-25000.0,0.000149,3]
[425080632,1781469047000,-2991.57404873,0.000149,2]
[425080629,1781469047000,-1039.55630745,0.00014899,5]
[425080616,1781469047000,-381.0,0.00014894,2]
[425080628,1781469047000,-1207.74,0.00014899,2]
[425080626,1781469047000,-500.0,0.00014899,2]
[425080625,1781469047000,-584.1,0.00014899,2]
[425080611,1781469047000,-381.0,0.00014892,2]
[425080627,1781469047000,-500.0,0.00014899,2]
[425080630,1781469047000,-912.77262326,0.000149,2]
[425080644,1781469047000,-381.0,0.00014904,2]
[425080633,1781469047000,-692.0906346,0.000149,2]
[425080637,1781469047000,-1351.89418603,0.000149,2]
[425080636,1781469047000,-1692.0,0.000149,5]
[425080638,1781469047000,-184.2270023,0.000149,2]
[425080640,1781469047000,-5800.0,0.000149,2]
[425080642,1781469047000,-402.6487862,0.000149,2]
[425080645,1781469047000,-381.0,0.00014908,2]
[425080643,1781469047000,-296.99088574,0.000149,2]
[425080639,1781469047000,-2042.34366995,0.000149,2]
[425080641,1781469047000,-1400.20602382,0.000149,2]
[425080613,1781469047000,-1247852.3576508,0.00014892,2]
[425080631,1781469047000,-2114.0,0.000149,5]
[425080618,1781469047000,-381.0,0.00014897,2]
[425080601,1781469047000,-1039.55630745,0.00014891,5]
[425080620,1781469047000,-500.0,0.00014899,2]
[425080646,1781469047000,-381.0,0.00014915,2]
[425080595,1781469047000,-5800.0,0.00014883,2]
[425080588,1781469047000,-381.0,0.00014875,2]
[425080589,1781469047000,-381.0,0.00014875,2]
[425080593,1781469047000,-200.0,0.0001488,2]
[425080590,1781469047000,-381.0,0.00014876,2]
[425080592,1781469047000,-200.0,0.0001488,2]
[425080591,1781469047000,-200.0,0.00014879,2]
[425080597,1781469047000,-381.0,0.00014887,2]
[425080596,1781469047000,-381.0,0.00014885,2]
[425080600,1781469047000,-381.0,0.00014891,2]
[425080607,1781469047000,-500.0,0.00014891,2]
[425080606,1781469047000,-500.0,0.00014891,2]
[425080603,1781469047000,-500.0,0.00014891,2]
[425080598,1781469047000,-381.0,0.00014888,2]
[425080602,1781469047000,-1063.40577739,0.00014891,5]
[425080599,1781469047000,-151.0,0.00014889,2]
[425080605,1781469047000,-500.0,0.00014891,2]
[425080604,1781469047000,-500.0,0.00014891,2]
[425080619,1781469047000,-1077.43,0.00014899,2]
[425080608,1781469047000,-25000.0,0.00014891,3]
[425080609,1781469047000,-5800.0,0.00014891,2]
[425080624,1781469047000,-779.21,0.00014899,2]
[425080623,1781469047000,-500.0,0.00014899,2]
[425080594,1781469047000,-200.0,0.0001488,2]
[425080648,1781469047000,-381.0,0.00014923,2]
[425080650,1781469047000,-381.0,0.0001494,2]
[425080678,1781469047000,-1625.54,0.00014957,2]
[425080684,1781469047000,-381.0,0.00014973,2]
[425080681,1781469047000,-381.0,0.00014969,2]
[425080679,1781469047000,-713.6778812,0.00014957,2]
[425080686,1781469047000,-500.0,0.00014974,2]
[425080687,1781469047000,-500.0,0.00014974,2]
[425080682,1781469047000,-151.0,0.00014972,2]
[425080683,1781469047000,-6111.0,0.00014973,2]
[425080680,1781469047000,-5389.7196574,0.00014967,2]
[425080685,1781469047000,-1207.74,0.00014974,2]
[425080690,1781469047000,-159.2430599,0.00014983,2]
[425080688,1781469047000,-1357.1344338,0.00014975,2]
[425080695,1781469047000,-381.0,0.00014994,2]
[425080689,1781469047000,-417747.3591028,0.00014975,2]
[425080691,1781469047000,-500.0,0.00014985,2]
[425080693,1781469047000,-1625.54,0.00014988,2]
[425080696,1781469047000,-151.0,0.00014997,2]
[425080694,1781469047000,-381.0,0.00014992,2]
[425080697,1781469047000,-1207.74,0.00014997,2]
[425080692,1781469047000,-381.0,0.00014986,2]
[425080698,1781469047000,-504.0687638,0.00014998,2]
[425080700,1781469047000,-500.0,0.00014998,2]
[425080647,1781469047000,-10000.0,0.00014921,2]
[425080673,1781469047000,-500.0,0.00014957,2]
[425080672,1781469047000,-500.0,0.00014957,2]
[425080699,1781469047000,-1077.43,0.00014998,2]
[425080676,1781469047000,-2407.68,0.00014957,2]
[425080675,1781469047000,-2407.68,0.00014957,2]
[425080653,1781469047000,-500.0,0.00014956,2]
[425080652,1781469047000,-350.0,0.00014953,2]
[425080654,1781469047000,-500.0,0.00014956,2]
[425080651,1781469047000,-381.0,0.00014947,2]
[425080659,1781469047000,-500.0,0.00014957,2]
[425080655,1781469047000,-2407.68,0.00014956,2]
[425080657,1781469047000,-1077.43,0.00014957,2]
[425080665,1781469047000,-584.1,0.00014957,2]
[425080656,1781469047000,-381.0,0.00014957,2]
[425080660,1781469047000,-500.0,0.00014957,2]
[425080664,1781469047000,-779.21,0.00014957,2]
[425080649,1781469047000,-381.0,0.00014924,2]
[425080661,1781469047000,-500.0,0.00014957,2]
[425080662,1781469047000,-500.0,0.00014957,2]
[425080663,1781469047000,-779.21,0.00014957,2]
[425080677,1781469047000,-1625.54,0.00014957,2]
[425080667,1781469047000,-500.0,0.00014957,2]
[425080669,1781469047000,-500.0,0.00014957,2]
[425080666,1781469047000,-584.1,0.00014957,2]
[425080668,1781469047000,-500.0,0.00014957,2]
[425080670,1781469047000,-500.0,0.00014957,2]
[425080671,1781469047000,-500.0,0.00014957,2]
[425080674,1781469047000,-500.0,0.00014957,2]
[425080658,1781469047000,-1077.43,0.00014957,2]
[425080735,1781469048000,-736.82,0.00014999,2]
[425080732,1781469048000,-736.82,0.00014999,2]
[425080736,1781469048000,-736.82,0.00014999,2]
[425080726,1781469048000,-736.82,0.00014999,2]
[425080737,1781469048000,-736.83,0.00014999,2]
[425080728,1781469048000,-736.82,0.00014999,2]
[425080727,1781469048000,-736.82,0.00014999,2]
[425080731,1781469048000,-736.82,0.00014999,2]
[425080733,1781469048000,-736.82,0.00014999,2]
[425080734,1781469048000,-736.82,0.00014999,2]
[425080749,1781469048000,-500.0,0.00014999,2]
[425080738,1781469048000,-1077.43,0.00014999,2]
[425080740,1781469048000,-1077.43,0.00014999,2]
[425080743,1781469048000,-1077.43,0.00014999,2]
[425080744,1781469048000,-1077.43,0.00014999,2]
[425080746,1781469048000,-1077.43,0.00014999,2]
[425080745,1781469048000,-1077.43,0.00014999,2]
[425080747,1781469048000,-1077.43,0.00014999,2]
[425080741,1781469048000,-1077.43,0.00014999,2]
[425080742,1781469048000,-1077.43,0.00014999,2]
[425080748,1781469048000,-1077.62450446,0.00014999,2]
[425080730,1781469048000,-736.82,0.00014999,2]
[425080739,1781469048000,-1077.43,0.00014999,2]
[425080729,1781469048000,-736.82,0.00014999,2]
[425080712,1781469048000,-500.0,0.00014999,2]
[425080723,1781469048000,-736.82,0.00014999,2]
[425080701,1781469048000,-196.29,0.00014998,2]
[425080703,1781469048000,-584.1,0.00014998,2]
[425080702,1781469048000,-779.21,0.00014998,2]
[425080706,1781469048000,-500.0,0.00014998,2]
[425080704,1781469048000,-500.0,0.00014998,2]
[425080705,1781469048000,-265.942942,0.00014998,2]
[425080707,1781469048000,-500.0,0.00014998,2]
[425080708,1781469048000,-2407.68,0.00014998,2]